Cogmind - Beta 13 @@@ ROGUE MODE // 2024.04.04 @ 12:53:47 Player: Civin Result: Destroyed by G-47 Trooper with Particle Gun Performance ------------- Evolutions (3) 1500 Regions Visited (4) 800 Robots Destroyed (30) 150 Value Destroyed (1101) 1101 Prototype IDs (1) 20 Alien Tech Used (0) 0 Bonus (0) 0 TOTAL SCORE: 3571 Bonus ------- None Cogmind --------- Core Integrity 0/700 Matter 72/300 Energy 100/100 System Corruption 0% Temperature Cool (9) Movement Core (50) Location -7/Factory Parts ------- > --- POWER (1) -------- (None) > --- PROPULSION (5) --- (None) > --- UTILITY (4) ------ (None) > --- WEAPON (3) ------- (None) > --- INVENTORY (5) ---- (None) Peak State ------------ > --- POWER ------------ Improved Ion Engine > --- PROPULSION ------- (None) > --- UTILITY ---------- Large Battery Shield Generator > --- WEAPON ----------- Heavy Rocket Launcher Chainsword > --- INVENTORY -------- Medium Storage Unit [Rating: 13] Favorites ----------- Power Light Ion Engine Engine Light Ion Engine Propulsion Aluminum Leg Leg Aluminum Leg Utility Medium Storage Unit Device Shield Generator Storage Medium Storage Unit Protection Propulsion Shielding Weapon Light Assault Rifle Energy Gun Improved Medium Laser Ballistic Gun Light Assault Rifle Launcher Mini Grenade Launcher Slashing Weapon Chainsword Build | -11 -10 -9 -8 -7 ------- Run | Yrd Mat Mat Mat Fac Slots Evolved 6 | . . 2 2 2 Power . | . . . . . Propulsion 3 | . . 2 . 1 Utility 2 | . . . 1 1 Weapon 1 | . . . 1 . Parts Attached 37 | 6 4 1 16 10 Power 5 | 1 1 . 2 1 Engine 5 | 1 1 . 2 1 Core . | . . . . . Reactor . | . . . . . Propulsion 11 | 2 . . 5 4 Treads . | . . . . . Leg 11 | 2 . . 5 4 Wheel . | . . . . . Hover . | . . . . . Flight . | . . . . . Utility 7 | 1 2 . 2 2 Device 1 | . . . 1 . Storage 5 | 1 1 . 1 2 Processor . | . . . . . Hackware . | . . . . . Protection 1 | . 1 . . . Artifact . | . . . . . Weapon 14 | 2 1 1 7 3 Energy Gun 1 | . . . 1 . Energy Cannon . | . . . . . Ballistic Gun 6 | 2 1 . 2 1 Ballistic Cannon . | . . . . . Launcher 6 | . . 1 4 1 Special Weapon . | . . . . . Impact Weapon . | . . . . . Slashing Weapon 1 | . . . . 1 Piercing Weapon . | . . . . . Special Melee Weapon . | . . . . . Unidentified Prototypes 1 | . . . 1 . Parts Lost 29 | . 1 4 14 10 Power 5 | . 1 1 2 1 Propulsion 11 | . . 2 5 4 Utility 4 | . . . 1 3 Weapon 9 | . . 1 6 2 Highest Loss Streak 10 | . 1 4 6 10 To Critical Strikes . | . . . . . Average Slot Usage (%) 47 | . 83 58 19 27 Engine 7 | . 11 9 2 4 Leg 15 | . 28 18 6 5 Storage 9 | . 14 11 4 6 Ballistic Gun 13 | . 28 16 3 1 Launcher 1 | . . 3 . . Naked Turns 311 | . . . 310 1 Heaviest Build 22 | 10 18 18 17 22 Greatest Support 40 | 20 20 20 40 30 Greatest Overweight (x) 7 | . . 3 1 7 Average Overweight (x) . | . . . . . Largest Inventory Capacity 10 | 8 10 10 10 10 Average Capacity 8 | 7 9 10 6 5 Most Carried 10 | 5 10 10 9 3 Average Carried 5 | 1 7 9 4 . Final Capacity 10 | 8 10 10 5 5 Final Carried 10 | 2 10 10 4 . Class Distribution -------------------- 94% | Mutant 5% | Gunner Dominant Class ---------------- Mutant | -10/Materials Mutant | -9/Materials Mutant | -8/Materials Mutant | -7/Factory Resources | -11 -10 -9 -8 -7 ----------- Run | Yrd Mat Mat Mat Fac Matter Collected 679 | 210 150 99 177 43 Remotely . | . . . . . Salvage Created 964 | . 213 203 472 76 Parts 54 | . 11 9 31 3 Haulers Intercepted . | . . . . . Recyclers Shooed 1 | . . . 1 . Parts Field Recycled . | . . . . . Retrieved Matter . | . . . . . Parts Self-Destructed . | . . . . . Prevented . | . . . . . Kills | -11 -10 -9 -8 -7 ------- Run | Yrd Mat Mat Mat Fac Combat Hostiles Destroyed 22 | . 5 5 9 3 Melee 3 | . . . 1 2 Guns 11 | . 5 2 3 1 AOE 8 | . . 3 5 . Classes Destroyed 8 | . 1 2 4 1 Worker 2 | . . . 2 . Builder 1 | . . . 1 . Recycler 1 | . . . 1 . Operator 1 | . . 1 . . Watcher 3 | . . . 3 . Grunt 18 | . 5 3 8 2 Sentry 3 | . . 2 1 . Hunter 1 | . . . . 1 Best Kill Streak 7 | . 1 2 7 2 Combat Bots Only 4 | . 1 2 4 2 Max Kills in Single Turn 4 | . 1 1 4 1 Gunslinging . | . . . . . Exploded 1 | . . 1 1 . Melee 1 | . . . 1 1 Uniques/NPCs Destroyed . | . . . . . Combat | -11 -10 -9 -8 -7 -------- Run | Yrd Mat Mat Mat Fac Hostile Shots Fired 323 | . 26 38 135 124 Missed 93 | . 7 9 45 32 Damage Taken 3902 | . 264 558 1613 1467 Core 1447 | . 39 207 497 704 Absorbed by Shields 60 | . . . . 60 Core Remaining (%) 60 | 100 84 48 9 . Volleys Fired 94 | . 23 21 37 13 Largest 3 | . 2 2 3 1 Hottest 102 | . 40 50 102 39 Shots Fired 163 | . 46 33 71 13 Gun 138 | . 46 24 59 9 Cannon . | . . . . . Launcher 25 | . . 9 12 4 Special . | . . . . . Kinetic 122 | . 46 24 43 9 Thermal 16 | . . . 16 . Explosive 25 | . . 9 12 4 Electromagnetic . | . . . . . Robot Hit Streak 12 | . 10 5 12 2 Robot Miss Streak 5 | . 3 3 4 5 Penetration Max . | . . . . . Secondary Targets 1 | . . . 1 . Max Gunslinging Chain 1 | . . . 1 . Shots Hit Robots 102 | . 31 22 37 12 Core Hits 82 | . 14 14 47 7 Critical Kills . | . . . . . Critical Parts Destroyed 1 | . . . . 1 Critical Strikes 4 | . . 1 1 2 Burn 1 | . . . 1 . Destroy 2 | . . 1 . 1 Sever 1 | . . . . 1 Melee Attacks 13 | . . . . 13 Impact . | . . . . . Slashing 13 | . . . . 13 Piercing . | . . . . . Sneak Attacks . | . . . . . Combat Hostiles . | . . . . . Follow-up Attacks . | . . . . . Damage Inflicted 2907 | 1 338 624 1432 512 Guns 1056 | . 336 190 481 49 Cannons . | . . . . . Explosions 1515 | . . 434 900 181 Melee 272 | . . . . 272 Ramming 64 | 1 2 . 51 10 Kinetic 955 | . 336 190 380 49 Thermal 101 | . . . 101 . Explosive 1515 | . . 434 900 181 Electromagnetic . | . . . . . Impact . | . . . . . Slashing 272 | . . . . 272 Piercing . | . . . . . Highest Corruption . | . . . . . Average Corruption . | . . . . . Corruption Purged . | . . . . . Corruption Blocked . | . . . . . Overload Shots . | . . . . . Overflow Damage 57 | . . 5 24 28 Projectiles . | . . . . . Explosions 27 | . . 5 22 . Melee 30 | . . . 2 28 Knockbacks . | . . . . . Impact . | . . . . . Kinetic . | . . . . . Secondary . | . . . . . Self-Inflicted Damage 277 | . . 152 86 39 Shots 11 | . . 5 4 2 Rammed 9 | . . . 7 2 Targets Rammed 27 | 1 1 . 22 3 Kicked 18 | 1 1 . 15 1 Crushed . | . . . . . Highest Temperature 260 | . 18 11 260 27 Average Temperature 85 | . 8 6 114 17 Received Heat Transfer 1758 | . 147 171 882 558 Siege Activations . | . . . . . Robots Corrupted . | . . . . . Combat Hostiles . | . . . . . Parts Fried . | . . . . . Impact Corruptions 2 | . . . 1 1 Robots Melted . | . . . . . Combat Hostiles . | . . . . . Parts Melted 2 | . . . 2 . Heat Transferred 296 | . . . 296 . Parts Sabotaged . | . . . . . Parts Stolen . | . . . . . Parts Stripped . | . . . . . Power Chain Reactions . | . . . . . Alert | -11 -10 -9 -8 -7 ------- Run | Yrd Mat Mat Mat Fac Peak Influence 327 | . 165 182 327 138 Initial 77 | . . 12 76 77 Average 103 | . 36 70 192 88 Maximum Alert Level 1 | . . . 1 . Low Security (%) 88 | 100 100 100 66 100 Level 1 11 | . . . 33 . Level 2 . | . . . . . Level 3 . | . . . . . Level 4 . | . . . . . Level 5 . | . . . . . High Security . | . . . . . Max Security . | . . . . . Squads Dispatched 4 | . 2 . 1 1 Investigation 1 | . 1 . . . Extermination . | . . . . . Reinforcement 3 | . 1 . 1 1 Assault . | . . . . . Garrison . | . . . . . Intercept . | . . . . . Searches Triggered . | . . . . . Construction Impeded . | . . . . . Haulers Reinforced . | . . . . . Active Scanning Responses . | . . . . . Cargo Convoy Interrupts . | . . . . . Stealth | -11 -10 -9 -8 -7 --------- Run | Yrd Mat Mat Mat Fac Distress Signals 4 | . 2 . 2 . Communications Jammed . | . . . . . Distress Signals . | . . . . . Times Spotted 51 | . 13 8 22 8 Peak Tracking Total 6 | . 5 3 6 4 Tactical Retreats 3 | . . . 3 . Traps | -11 -10 -9 -8 -7 ------- Run | Yrd Mat Mat Mat Fac Traps Triggered 1 | . 1 . . . Indirectly . | . . . . . Trap Hack Attempts . | . . . . . Triggered . | . . . . . Disarmed . | . . . . . Reprogrammed . | . . . . . Reused . | . . . . . Traps Extracted . | . . . . . Installed . | . . . . . Triggered . | . . . . . Machines | -11 -10 -9 -8 -7 ---------- Run | Yrd Mat Mat Mat Fac Machines Disabled 2 | . . . . 2 Max in Single Turn 1 | . . . . 1 Machines Repaired . | . . . . . Machines Dismantled . | . . . . . Machines Sabotaged . | . . . . . Overloaded Fab Kills . | . . . . . Hacking | -11 -10 -9 -8 -7 --------- Run | Yrd Mat Mat Mat Fac Machines Accessed 1 | . 1 . . . Terminals 1 | . 1 . . . Fabricators . | . . . . . Repair Stations . | . . . . . Recycling Units . | . . . . . Scanalyzers . | . . . . . Garrison Access . | . . . . . Total Hacks 1 | . 1 . . . Successful 1 | . 1 . . . Failed . | . . . . . Catastrophic . | . . . . . Database Lockouts . | . . . . . Manual . | . . . . . Terminals 1 | . 1 . . . Fabricators . | . . . . . Repair Stations . | . . . . . Recycling Units . | . . . . . Scanalyzers . | . . . . . Garrison Access . | . . . . . Terminal Hacks 1 | . 1 . . . Locate Traps 1 | . 1 . . . Fabricator Hacks . | . . . . . Repair Station Hacks . | . . . . . Recycling Unit Hacks . | . . . . . Scanalyzer . | . . . . . Garrison Access Hacks . | . . . . . Unauthorized Hacks . | . . . . . Terminals . | . . . . . Fabricators . | . . . . . Repair Stations . | . . . . . Recycling Units . | . . . . . Scanalyzers . | . . . . . Garrison Access . | . . . . . Data Cores Recovered 1 | . . 1 . . Used . | . . . . . Hacking Detections 1 | . 1 . . . Full Trace Events . | . . . . . Feedback Events . | . . . . . Feedback Blocked . | . . . . . Robot Schematics Acquired . | . . . . . Robots Built . | . . . . . Authchips . | . . . . . Time . | . . . . . Total Robot Build Rating . | . . . . . Part Schematics Acquired . | . . . . . Parts Built . | . . . . . Authchips . | . . . . . Time . | . . . . . Total Part Build Rating . | . . . . . Parts Repaired . | . . . . . Time . | . . . . . Parts Recycled . | . . . . . Recycled Matter . | . . . . . Retrieved Matter . | . . . . . Retrieved Components . | . . . . . Parts Scanalyzed . | . . . . . Part Schematics Acquired . | . . . . . Parts Damaged . | . . . . . Bothacking | -11 -10 -9 -8 -7 ------------ Run | Yrd Mat Mat Mat Fac Used RIF Installer . | . . . . . Robots Hacked . | . . . . . Non-combat . | . . . . . Combat . | . . . . . Robot Hacks Applied . | . . . . . Relay Couplers Released . | . . . . . Fabnet Peak Effective % . | . . . . . Robots Rewired . | . . . . . Allies Hacked . | . . . . . Hacks Repelled . | . . . . . Allies | -11 -10 -9 -8 -7 -------- Run | Yrd Mat Mat Mat Fac Total Allies . | . . . . . Largest Group . | . . . . . Highest-Rated Group . | . . . . . Highest-Rated Ally . | . . . . . Total Orders . | . . . . . Ally Attacks . | . . . . . Total Damage . | . . . . . Kills . | . . . . . Allies Corrupted . | . . . . . Allies Melted . | . . . . . Intel | -11 -10 -9 -8 -7 ------- Run | Yrd Mat Mat Mat Fac Robot Analysis Total . | . . . . . Derelict Logs Recovered . | . . . . . Drone Launches . | . . . . . Drone Recoveries . | . . . . . Exploration | -11 -10 -9 -8 -7 ------------- Run | Yrd Mat Mat Mat Fac Turns Passed 2086 | 58 624 389 733 282 Spaces Moved 1072 | 43 335 229 303 162 Core 182 | 11 . 28 126 17 Treads . | . . . . . Legs 890 | 32 335 201 177 145 Wheels . | . . . . . Hover . | . . . . . Flight . | . . . . . Fastest Speed 50 | 50 120 120 50 50 Average Speed 117 | 102 120 131 101 125 Slowest Speed 400 | 120 120 200 190 400 Overloaded Moves . | . . . . . Propulsion Burnouts . | . . . . . Robots Hopped . | . . . . . Cave-ins Triggered . | . . . . . Exploration Rate (%) 20 | 4 52 20 21 5 Regions Visited 4 Branch Regions . Pre-discovered Areas . | . . . . . Known Exits Taken . | . . . . . Unknown Exits Taken 4 | 1 1 1 1 . Scrap Searched . | . . . . . Spaces Dug . | . . . . . Terrain Destroyed 117 | . . 50 42 25 Melee . | . . . . . Projectile . | . . . . . AOE 117 | . . 50 42 25 Terrain Rammed . | . . . . . Walls Destroyed . | . . . . . Machines Disabled . | . . . . . Actions | -11 -10 -9 -8 -7 --------- Run | Yrd Mat Mat Mat Fac Total 1730 | 57 517 292 661 203 Wait 447 | . 141 26 280 . Move 1068 | 42 334 228 302 162 Hop . | . . . . . Pick Up 30 | 8 10 8 2 2 Fast Attach 10 | . 1 . 5 4 Attach 25 | 6 2 1 10 6 Detach 4 | . 2 . 2 . Swap 2 | . 1 . 1 . Drop 10 | . 2 8 . . Fire 94 | . 23 21 37 13 Melee 13 | . . . . 13 Ram 9 | . . . 7 2 Kick 18 | 1 1 . 15 1 Crush . | . . . . . Escape Stasis . | . . . . . Rewire . | . . . . . Trap . | . . . . . Miscellaneous . | . . . . . Route ------- -11/Scrapyard -10/Materials -9/Materials -8/Materials -7/Factory History --------- Turn | Location | Event 10 | -11/Scrapyard | Discovered new exit (range 16) 59 | -11/Scrapyard | Entered Materials 300 | -10/Materials | Build established: Mutant 623 | -10/Materials | Discovered new exit (range 15) 683 | -10/Materials | Entered another Materials area 683 | -9/Materials | Evolved 2 slots: Propulsion x2 1016 | -9/Materials | Discovered new exit (range 13) 1042 | -9/Materials | Lost 4 parts (1p2n1w) 1071 | -9/Materials | Core integrity fell below 50% 1072 | -9/Materials | Entered another Materials area 1072 | -8/Materials | Evolved 2 slots: Utility x1, Weapon x1 1258 | -8/Materials | Lost 6 parts (1p1n4w) 1319 | -8/Materials | Lost 3 parts (1n2w) 1415 | -8/Materials | Core integrity fell below 50% 1478 | -8/Materials | Core integrity fell below 20% 1799 | -8/Materials | Discovered new exit (range 11) 1805 | -8/Materials | Entered Factory 1805 | -7/Factory | Evolved 2 slots: Propulsion x1, Utility x1 2027 | -7/Factory | Core integrity fell below 50% 2076 | -7/Factory | Core integrity fell below 20% 2087 | -7/Factory | Destroyed by G-47 Trooper with Particle Gun Last Messages --------------- Penetrated by Slug. Aluminum Leg destroyed. The unstable cave ceiling collapses. Penetrated by Slug. H-55 Commando destroyed. Acquired Assault Rifle. Acquired Carbon-fiber Leg. G-47 Trooper suffers critical hit (Destroy). Destroyed Lgt. Nuclear Core. Carbon-fiber Leg destroyed. G-47 Trooper destroyed. Acquired 15 matter. Critical hit (Burn: +37). The unstable cave ceiling collapses. Carbon-fiber Leg destroyed. Assault Rifle severed. Chainsword destroyed. Slammed into L-41 Fighter. Critical hit (Burn: +37). Med. Storage Unit destroyed. Map ----- +----------------------------------------------------+ | | | | | | | | | | | | | | | | | | | | | | | | | | | | | ??????????????????????##?????????????????????????? | | ?????????????????????## #######??????????????????? | | ?????????############# # # ##?????????????????? | | ?????????# # #?????????????????? | | ?????????# """ # #######???????????? | | ########## """ + # #######???????? | | + """ # #???????? | | ####### # """ #???????? | | #?????# # """ #???????? | | ############## """ #???????? | | #???????? | | @ % #???????? | | l # #???????? | | #???????? | | ################ # #######???????? | | #?????# g # #????????????? | | "" ! #?????# g ######????????????? | | "" ??????# g #?????????????????? | | "T """ #?????# #????????????????? | | "" """ #?????# #????????????????? | | "" """ #?????# ???????????????? | | #?????# ??????????????? | | #?????# """ ![ ?????????????? | | ##+#######?????# ##### "T ![ ?????????????? | | ?# #???????????# ????# """ ?????????????? | | ?# #?????????????##?????## ?? ??????????????? | | ####?????????????????????? !?? ?????????????????? | | ??????????????????????? ?????????????????????? | | ????????????????????????????????????????????? | | """""????????????????????????????????????????????? | | ?????????????????????????????????????????????? | | """"""???????????????????????????????????????????? | | ???????????????????????????????????????????? | | """""" #????????????????????????????????????????? | | #????????????????????????????????????????? | | """""" #????????????????????????????????????????? | +----------------------------------------------------+ Best States ------------- Heat Dissipation 34 Energy Generation 12 Energy Capacity 465 Matter Stores 300 Matter Capacity 300 Sight Range 16 Terrain Scan Density 10 Propulsion Shielding 33 Evasion (%) 55 Item Schematics ----------------- None Robot Schematics ------------------ None Fabricated ------------ Nothing Alien Tech Used ----------------- None Achievements -------------- Close Call Challenges ------------ None Game ------ Seed ReflectiveMyomerWings Manual? 0 Play Time 00:21:47 Cumulative 2.8 hours Start 2024.04.04 @ 12:34:24 End 2024.04.04 @ 12:53:47 Sessions 1 Manual Loads 0 Difficulty Rogue Special Mode None Game No. 8 Rogue 6 Adventurer 2 Explorer 0 Win Type - Total 0 Types 0/0/0/0/0/0/0/0/0 Lore% 2 Gallery% 6 Achievement% 8 Wizard Run 0 Options --------- Layout 1 ASCII 0 Keyboard 0 Movement Numpad Keybinds 0 Fullscreen 1 Font 24/Smallcaps Map View 50x35 Zoom Use 0% Tactical HUD 0 Map Filters NONE Filters NONE Steam 1 RUN: 25d97b37-509b-4c9a-bae0-a4cfe0cb1a56